bitfinex/quotes_BTCUSD_20251209
["timestamp","ask_amount","ask_price","bid_price","bid_amount"]
[1765287586326,0.22075055,90600.0,90599.0,0.00561287]
[1765287586543,0.22075055,90600.0,90599.0,0.00161287]
[1765287586884,0.22175055,90600.0,90599.0,0.00661287]
[1765287587279,0.22175055,90600.0,90599.0,0.00861287]
[1765287587867,0.001,90600.0,90599.0,0.00861287]
[1765287588216,0.22175055,90600.0,90599.0,0.00861287]
[1765287588938,0.001,90600.0,90599.0,0.00861287]
[1765287589337,0.22175055,90600.0,90599.0,0.00861287]
[1765287589699,0.22175055,90600.0,90599.0,0.00905807]
[1765287591656,0.22175055,90600.0,90599.0,0.22981105]
[1765287591657,0.001,90600.0,90599.0,0.22981105]
[1765287592976,0.001,90600.0,90599.0,0.25178731]
[1765287594030,0.001,90600.0,90599.0,0.3143103]
[1765287594818,0.001,90600.0,90599.0,0.3123103]
[1765287596208,0.001,90600.0,90599.0,0.3163103]
[1765287596422,4.661e-05,90615.0,90614.0,0.22071644]
[1765287598007,4.661e-05,90615.0,90614.0,0.22271644]
[1765287598203,4.661e-05,90615.0,90614.0,0.22671644]
[1765287598204,0.00104661,90615.0,90614.0,0.22671644]
[1765287598411,0.00104661,90615.0,90614.0,0.22832931]
[1765287601172,0.00104661,90615.0,90614.0,0.00761287]
[1765287601539,0.00104661,90615.0,90614.0,0.22832931]
[1765287607157,0.00104661,90615.0,90614.0,0.00761287]
[1765287607320,0.00104661,90615.0,90614.0,0.22832931]
[1765287607724,0.00104661,90615.0,90614.0,0.00761287]
[1765287608149,0.22176061,90615.0,90614.0,0.00761287]
[1765287610061,0.22176061,90615.0,90614.0,0.006]
[1765287611763,0.23175517,90615.0,90614.0,0.006]
[1765287612311,0.8921212,90615.0,90614.0,0.006]
[1765287612430,0.8921212,90615.0,90614.0,0.004]
[1765287612862,0.24275717,90607.0,90606.0,0.00023742]
[1765287613596,0.27593389,90607.0,90606.0,0.00023742]
[1765287613976,0.28622502,90607.0,90606.0,0.00023742]
[1765287614373,1.08357126,90607.0,90606.0,0.00023742]
[1765287614791,1.10727871,90607.0,90606.0,0.00023742]
[1765287615394,1.08357126,90607.0,90606.0,0.00123742]
[1765287615798,1.1072719,90607.0,90606.0,0.00123742]
[1765287615972,1.1072719,90607.0,90606.0,0.00023742]
[1765287616194,1.1092719,90607.0,90606.0,0.00123742]
[1765287617507,1.07105166,90607.0,90606.0,0.00123742]
[1765287618963,2.53349616,90591.0,90590.0,0.0002]
[1765287619147,0.52149141,90581.0,90580.0,0.0002]
[1765287619382,2.6302982,90581.0,90580.0,0.0002]
[1765287619567,2.65394296,90581.0,90580.0,0.0002]
[1765287619779,2.65836857,90581.0,90580.0,0.0002]
[1765287620130,2.74039712,90581.0,90580.0,0.0002]
[1765287620336,2.71675236,90581.0,90580.0,0.00058594]
[1765287620662,2.74537373,90581.0,90580.0,0.00158594]
[1765287620867,2.74537373,90581.0,90580.0,0.00058594]
[1765287621274,0.24083473,90561.0,90535.0,9e-05]
[1765287621605,1.60204162,90561.0,90539.0,0.01104496]
[1765287621752,1.60204162,90561.0,90537.0,0.0110452]
[1765287621936,1.60204162,90561.0,90535.0,0.01113545]
[1765287622141,1.60204162,90561.0,90535.0,0.23204319]
[1765287622365,1.60646815,90561.0,90537.0,0.0110452]
[1765287622560,1.60646815,90561.0,90536.0,0.01104533]
[1765287622766,1.60646815,90561.0,90535.0,9e-05]
[1765287623233,1.60746815,90561.0,90560.0,0.0012]
[1765287623655,1.60646815,90561.0,90560.0,0.0002]
[1765287624036,1.60746815,90561.0,90560.0,0.0012]
[1765287624211,1.60646815,90561.0,90560.0,0.0002]
[1765287624423,1.71697577,90561.0,90560.0,0.0002]
[1765287625591,1.72718388,90561.0,90560.0,0.0002]
[1765287625799,1.72818388,90561.0,90560.0,0.0012]
[1765287625998,1.72718388,90561.0,90560.0,0.0002]
[1765287626508,1.72818388,90561.0,90560.0,0.0012]
[1765287626954,1.61767626,90561.0,90560.0,0.0012]
[1765287627130,1.60746815,90561.0,90560.0,0.0012]
[1765287627541,1.61866609,90561.0,90560.0,0.0012]
[1765287629824,1.61866609,90561.0,90560.0,0.00256592]
[1765287630439,1.71355294,90561.0,90560.0,0.00256592]
[1765287630632,1.82306056,90561.0,90560.0,0.00256592]
[1765287630892,1.82406056,90561.0,90560.0,0.00156592]
[1765287631270,1.82406056,90561.0,90535.0,9e-05]
[1765287631271,0.51157,90551.0,90535.0,9e-05]
[1765287631478,2.5492425,90551.0,90535.0,9e-05]
[1765287631838,2.5492425,90551.0,90550.0,0.00049705]
[1765287632046,2.53904456,90551.0,90550.0,0.00049705]
[1765287632447,2.66416521,90551.0,90550.0,0.00049705]
[1765287633107,2.66416521,90551.0,90550.0,0.00149705]
[1765287633108,2.66516521,90551.0,90550.0,0.00149705]
[1765287633325,2.66416521,90551.0,90550.0,0.00049705]
[1765287633685,2.66516521,90551.0,90550.0,0.00249705]
[1765287634428,2.74954655,90551.0,90550.0,0.00249705]
[1765287634840,2.74854655,90551.0,90550.0,0.00249705]
[1765287635216,2.63903893,90551.0,90550.0,0.00249705]
[1765287637223,1.21876359,90551.0,90550.0,0.00249705]
[1765287637728,1.30250119,90551.0,90550.0,0.00249705]
[1765287641313,1.3260437,90551.0,90550.0,0.00249705]
[1765287643221,0.5116066,90536.0,90535.0,9e-05]
[1765287643426,2.56129609,90536.0,90535.0,9e-05]
[1765287643780,2.55926153,90536.0,90535.0,0.00053567]
[1765287643989,2.59246704,90536.0,90535.0,0.00053567]
[1765287644393,2.59246704,90536.0,90535.0,0.00153567]
[1765287645841,2.55926153,90536.0,90535.0,0.00153567]
[1765287645988,2.56026153,90536.0,90535.0,0.00653567]
[1765287647299,2.56229609,90536.0,90535.0,0.00653567]
[1765287647903,0.01118581,90536.0,90535.0,0.22905758]
[1765287648297,0.01118581,90536.0,90535.0,0.00814854]
[1765287648498,0.23209241,90536.0,90535.0,0.00814854]
[1765287650778,0.01118581,90536.0,90535.0,0.00814854]
[1765287651186,0.23209241,90536.0,90535.0,0.00814854]
[1765287651345,0.25411609,90536.0,90535.0,0.00814854]
[1765287651551,2.18659909,90536.0,90535.0,0.00653567]
[1765287651785,2.21031057,90536.0,90535.0,0.00653567]
[1765287651936,2.53364248,90531.0,90530.0,0.0002]
[1765287652132,2.56753977,90531.0,90530.0,0.0002]
[1765287652893,2.04477777,90531.0,90530.0,0.0002]
[1765287653093,1.94865823,90531.0,90530.0,0.0002]
[1765287654087,1.94965823,90531.0,90530.0,0.0042]
[1765287654286,0.66273655,90531.0,90530.0,0.0042]
[1765287655725,0.67273111,90531.0,90530.0,0.0042]
[1765287658116,0.66273655,90531.0,90530.0,0.0042]
[1765287658684,0.67273111,90531.0,90530.0,0.0042]
[1765287660300,0.66273655,90531.0,90530.0,0.0042]
[1765287660502,0.54659655,90531.0,90530.0,0.0042]
[1765287660705,0.65550055,90531.0,90530.0,0.0042]
[1765287661327,0.54659655,90531.0,90530.0,0.0042]
[1765287661520,0.32567775,90531.0,90530.0,0.0042]
[1765287661722,0.01126627,90531.0,90530.0,0.00581287]
[1765287662431,0.01138167,90531.0,90530.0,0.00581287]
[1765287662633,0.23230047,90531.0,90530.0,0.00581287]
[1765287664145,0.01138167,90531.0,90530.0,0.00581287]
[1765287664670,0.01138167,90531.0,90530.0,0.22673411]
[1765287666978,0.01138167,90531.0,90530.0,0.00581287]
[1765287667596,0.01138167,90531.0,90530.0,0.22673411]
[1765287668219,0.01138167,90531.0,90530.0,0.00581287]
[1765287668602,0.23230047,90531.0,90530.0,0.00581287]
[1765287668798,0.01138167,90531.0,90530.0,0.00581287]
[1765287669198,0.01138167,90531.0,90530.0,0.22673411]
[1765287669401,0.22199926,90531.0,90530.0,0.00581287]
[1765287669698,0.23230047,90531.0,90530.0,0.00581287]
[1765287670111,0.01138167,90531.0,90530.0,0.00581287]
[1765287670352,0.00108046,90531.0,90530.0,0.00581287]
[1765287670502,0.00108046,90531.0,90530.0,0.22673411]
[1765287672924,0.00108046,90531.0,90530.0,0.24421411]
[1765287673321,0.00108046,90531.0,90530.0,0.31673528]
[1765287673912,8.046e-05,90531.0,90530.0,0.24221411]
[1765287674117,8.046e-05,90531.0,90530.0,0.00181287]
[1765287674313,0.00208046,90531.0,90530.0,0.01929287]
[1765287674533,0.00208046,90531.0,90530.0,0.26230623]
[1765287674709,8.046e-05,90531.0,90530.0,0.24021411]
[1765287675521,8.046e-05,90531.0,90530.0,0.24421411]
[1765287676459,0.00208046,90531.0,90530.0,0.25021411]
[1765287676870,8.046e-05,90531.0,90530.0,0.24421411]
[1765287677235,0.00108046,90531.0,90530.0,0.25021411]
[1765287685143,0.00108046,90531.0,90530.0,0.27219037]
[1765287685505,0.00108046,90531.0,90530.0,0.26021229]
[1765287685710,0.00108046,90531.0,90530.0,0.32273528]
[1765287687947,0.00108046,90531.0,90530.0,0.3127371]
[1765287689374,0.00108046,90531.0,90530.0,0.23273411]
[1765287689692,0.00108046,90531.0,90530.0,0.25021411]
[1765287689849,0.22199926,90531.0,90530.0,0.02929287]
[1765287690051,0.22199926,90531.0,90530.0,0.01181287]
[1765287691087,0.22099926,90531.0,90530.0,0.00581287]
[1765287691255,0.22199926,90531.0,90530.0,0.00381287]
[1765287691678,0.22099926,90531.0,90530.0,0.00281287]
[1765287692284,0.22099926,90531.0,90530.0,0.00181287]
[1765287692645,0.22099926,90531.0,90530.0,0.00381287]
[1765287693043,0.22099926,90531.0,90530.0,0.00181287]
[1765287693264,0.22199926,90531.0,90530.0,0.00481287]
[1765287693465,0.22099926,90531.0,90530.0,0.00181287]
[1765287693873,0.22199926,90531.0,90530.0,0.00581287]
[1765287694564,0.22199926,90531.0,90530.0,0.00781287]
[1765287695741,0.00108046,90531.0,90530.0,0.22873411]
[1765287695861,0.00108046,90531.0,90530.0,0.00781287]
[1765287696062,0.00108046,90531.0,90530.0,0.22873411]
[1765287698632,0.22199926,90531.0,90530.0,0.00781287]
[1765287705504,0.22199926,90531.0,90530.0,0.0062]
[1765287705911,0.60889808,90531.0,90530.0,0.0062]
[1765287706368,0.51269926,90531.0,90530.0,0.0062]
[1765287706808,0.51269926,90531.0,90530.0,0.0042]
[1765287706980,0.51269926,90531.0,90530.0,0.0052]
[1765287707442,2.5319903,90531.0,90530.0,0.0012]
[1765287707647,2.58907225,90531.0,90530.0,0.0032]
[1765287707863,2.66721601,90531.0,90530.0,0.0022]
[1765287708072,2.66621601,90531.0,90530.0,0.0002]
[1765287708484,2.66821601,90531.0,90530.0,0.0012]
[1765287708689,2.66621601,90531.0,90530.0,0.0012]
[1765287709490,2.69582527,90531.0,90530.0,0.0012]
[1765287710282,2.66821601,90531.0,90530.0,0.0012]
[1765287710483,2.66921601,90531.0,90530.0,0.0012]
[1765287711284,2.66921601,90531.0,90527.0,1.02383773]
[1765287711285,2.5336498,90528.0,90527.0,1.02383773]
[1765287711485,2.5336498,90528.0,90527.0,0.45532672]
[1765287711486,2.74069498,90528.0,90527.0,0.45532672]
[1765287711804,2.77391181,90528.0,90527.0,0.45532672]
[1765287712433,0.53371571,90501.0,90483.0,0.00027]
[1765287712635,2.55119571,90501.0,90483.0,0.00027]
[1765287712953,2.66170331,90501.0,90500.0,0.00100261]
[1765287713151,2.67275657,90501.0,90500.0,0.00100261]
[1765287713510,2.67275657,90501.0,90500.0,0.00111823]
[1765287714314,2.67275657,90501.0,90500.0,0.00211823]
[1765287714939,2.68300784,90501.0,90500.0,0.00211823]
[1765287715299,2.68400784,90501.0,90500.0,0.00211823]
[1765287716135,2.68400784,90501.0,90500.0,0.00111823]
[1765287717091,2.68300784,90501.0,90500.0,0.00111823]
[1765287717430,2.69100784,90501.0,90500.0,0.00111823]
[1765287717653,2.68500784,90501.0,90500.0,0.00111823]
[1765287718554,2.69100784,90501.0,90500.0,0.00111823]
[1765287719092,2.68300784,90501.0,90500.0,0.00111823]
[1765287719518,2.68500784,90501.0,90500.0,0.00111823]
[1765287719919,2.74753083,90501.0,90500.0,0.00111823]
[1765287720151,2.74553083,90501.0,90500.0,0.00111823]
[1765287720342,2.74753083,90501.0,90500.0,0.00111823]
[1765287720987,2.72805083,90501.0,90500.0,0.00111823]
[1765287721190,2.74753083,90501.0,90500.0,0.00111823]
[1765287721744,2.73505083,90501.0,90500.0,0.00111823]
[1765287721957,2.66752784,90501.0,90500.0,0.00111823]
[1765287722161,2.26632024,90501.0,90500.0,0.00111823]
[1765287722364,2.57950024,90501.0,90500.0,0.00111823]
[1765287722579,2.57250024,90501.0,90500.0,0.00111823]
[1765287722981,2.57450024,90501.0,90500.0,0.00111823]
[1765287723183,2.57950024,90501.0,90500.0,0.00111823]
[1765287723403,2.68500786,90501.0,90500.0,0.00111823]
[1765287723708,2.74553085,90501.0,90500.0,0.00111823]
[1765287723999,2.74553085,90501.0,90456.0,0.00035912]
[1765287724000,0.5,90480.0,90456.0,0.00035912]
[1765287724158,2.10170052,90457.0,90456.0,0.00035912]
[1765287724303,2.10170052,90457.0,90456.0,0.00047485]
[1765287724304,2.11918052,90457.0,90456.0,0.00047485]
[1765287724651,0.67992585,90457.0,90456.0,0.00047485]
[1765287724949,0.64668952,90457.0,90456.0,0.00047485]
[1765287725092,0.75719714,90457.0,90456.0,0.00047485]
[1765287725331,0.64668952,90457.0,90456.0,0.00047485]
[1765287725528,0.64868952,90457.0,90456.0,0.00047485]
[1765287725912,0.63355352,90457.0,90456.0,0.00047485]
[1765287726050,0.6390972,90457.0,90456.0,0.00047485]
[1765287726264,0.61707352,90457.0,90456.0,0.00047485]
[1765287726470,0.62836252,90457.0,90456.0,0.00147485]
[1765287726857,0.61607352,90457.0,90456.0,0.00147485]
[1765287728070,0.61707352,90457.0,90456.0,0.00147485]
[1765287728268,0.6390972,90457.0,90456.0,0.00147485]
[1765287730710,0.64930279,90457.0,90456.0,0.00147485]
[1765287731122,0.64930279,90457.0,90456.0,0.00278365]
[1765287731333,0.75981041,90457.0,90456.0,0.00278365]
[1765287732528,0.75981041,90457.0,90456.0,0.00178365]
[1765287732728,0.75981041,90457.0,90456.0,0.00278365]
[1765287732927,0.75881041,90457.0,90456.0,0.00278365]
[1765287733382,0.75881041,90457.0,90450.0,0.0002]
[1765287733383,2.53383787,90451.0,90450.0,0.0002]
[1765287733557,2.53383787,90451.0,90435.0,0.00064065]
[1765287733558,0.53387454,90436.0,90435.0,0.00064065]
[1765287733758,2.56156013,90436.0,90435.0,0.00102697]
[1765287734711,2.56599312,90436.0,90435.0,0.00102697]
[1765287735183,0.22120754,90413.0,90410.0,0.00797819]
[1765287735451,0.01106023,90414.0,90410.0,0.23238999]
[1765287735614,0.23225345,90419.0,90414.0,0.2322626]
[1765287735615,0.01105962,90419.0,90414.0,0.2322626]
[1765287735772,0.02853888,90425.0,90410.0,0.0017285]
[1765287735773,0.13028866,90435.0,90431.0,0.01105815]
[1765287735974,0.02126478,90434.0,90431.0,0.00161287]
[1765287736175,0.004,90436.0,90432.0,0.22116065]
[1765287736374,0.004,90436.0,90434.0,0.22115434]
[1765287736625,0.004,90436.0,90435.0,0.02211533]
[1765287736782,0.004,90436.0,90433.0,0.23221545]
[1765287736985,0.004,90436.0,90434.0,0.24326947]
[1765287737186,0.004,90436.0,90434.0,0.2211539]
[1765287737500,0.0110568,90442.0,90434.0,0.2211539]
[1765287737501,0.01021338,90438.0,90436.0,0.21615086]
[1765287737673,0.02127006,90443.0,90439.0,0.23219898]
[1765287737871,0.24240521,90443.0,90439.0,0.23219898]
[1765287738069,0.24240521,90443.0,90436.0,0.22882127]
[1765287738070,0.22114663,90438.0,90436.0,0.00161287]
[1765287738323,0.01022281,90437.0,90436.0,0.00161287]
[1765287738901,0.01060645,90437.0,90436.0,0.00161287]
[1765287739143,0.00038364,90437.0,90436.0,0.00161287]
[1765287739285,0.06142471,90437.0,90436.0,0.00161287]
[1765287739469,0.06142471,90437.0,90436.0,0.00520805]
[1765287739671,0.01060645,90437.0,90436.0,0.00520805]
[1765287739896,0.01060645,90437.0,90436.0,0.00220805]
[1765287740327,0.01060645,90437.0,90436.0,0.00520805]
[1765287741009,0.01160645,90437.0,90436.0,0.00520805]
[1765287741821,0.22304545,90437.0,90436.0,0.00520805]
[1765287742020,0.22304545,90437.0,90436.0,0.00359518]
[1765287742446,0.53122545,90437.0,90436.0,0.00359518]
[1765287742631,0.53122545,90437.0,90400.0,0.0028]
[1765287742632,0.01106096,90408.0,90403.0,0.01106157]
[1765287742858,0.01106096,90408.0,90401.0,0.23229696]
[1765287742859,0.01106133,90405.0,90401.0,0.01106182]
[1765287743066,0.01106133,90405.0,90401.0,0.22123583]
[1765287743268,0.135024,90415.0,90406.0,0.01106121]
[1765287743443,0.2907,90429.0,90406.0,0.01267408]
[1765287743444,0.01106072,90410.0,90406.0,0.01267408]
[1765287743643,0.01106072,90410.0,90406.0,0.00161287]
[1765287743644,0.22121982,90408.0,90406.0,0.00161287]
[1765287743847,0.0102388,90407.0,90406.0,0.0017285]
[1765287745414,0.0112388,90407.0,90406.0,0.0017285]
[1765287745621,0.0112388,90407.0,90406.0,0.22695275]
[1765287746578,0.0112388,90407.0,90406.0,0.0057285]
[1765287747034,0.0112388,90407.0,90406.0,0.00411563]
[1765287747232,0.0122388,90407.0,90406.0,0.00411563]
[1765287748719,0.4743908,90407.0,90406.0,0.00411563]
[1765287748929,0.48438536,90407.0,90406.0,0.00411563]
[1765287749159,0.48438536,90407.0,90406.0,0.0050088]
[1765287749739,0.48338536,90407.0,90406.0,0.0010088]
[1765287750444,0.77308536,90407.0,90406.0,0.0010088]
[1765287750655,0.79766118,90407.0,90406.0,0.0010088]
[1765287751050,0.62476918,90407.0,90406.0,0.0010088]
[1765287751254,0.60218242,90407.0,90406.0,0.0030088]
[1765287751420,0.58630542,90407.0,90406.0,0.0030088]
[1765287751614,0.4969168,90407.0,90406.0,0.0030088]
[1765287751822,0.4802168,90407.0,90406.0,0.0010088]
[1765287752018,0.4242508,90407.0,90406.0,0.0010088]
[1765287752229,0.0102388,90407.0,90406.0,0.0030088]
[1765287752765,0.0102388,90407.0,90406.0,0.0010088]
[1765287753107,0.0102388,90407.0,90406.0,0.0030088]
[1765287754109,0.0112388,90407.0,90406.0,0.0030088]
[1765287754322,0.0112388,90407.0,90406.0,0.0010088]
[1765287754538,0.0102388,90407.0,90406.0,0.0040088]
[1765287754737,0.0112388,90407.0,90406.0,0.0040088]
[1765287757960,1.08660448,90407.0,90406.0,0.0040088]
[1765287758516,0.62719548,90407.0,90406.0,0.0040088]
[1765287758715,0.21331048,90407.0,90406.0,0.0040088]
[1765287759092,0.1912868,90407.0,90406.0,0.0040088]
[1765287759292,0.1758198,90407.0,90406.0,0.0040088]
[1765287759446,0.20357788,90407.0,90406.0,0.0040088]
[1765287760286,0.20334388,90407.0,90406.0,0.0040088]
[1765287760494,0.0112388,90407.0,90406.0,0.00562167]
[1765287760867,0.0112388,90407.0,90406.0,0.02759793]
[1765287761240,0.0112388,90407.0,90406.0,0.02459793]
[1765287761456,0.0102559,90407.0,90406.0,0.02459793]
[1765287761689,0.0102559,90407.0,90406.0,0.00562167]
[1765287761909,0.0112559,90407.0,90406.0,0.00562167]
[1765287762110,0.001,90407.0,90406.0,0.02774409]
[1765287762322,0.22118581,90422.0,90418.0,0.01105974]
[1765287762528,0.0102576,90421.0,90420.0,0.0110595]
[1765287762779,0.0102576,90421.0,90420.0,0.23386093]
[1765287764122,0.0132576,90421.0,90420.0,0.23486093]
[1765287764326,0.003,90421.0,90420.0,0.23486093]
[1765287764526,0.0102576,90425.0,90424.0,0.22118021]
[1765287764832,0.0102576,90425.0,90424.0,0.29373339]
[1765287765029,0.01105815,90431.0,90428.0,0.23222718]
[1765287765350,0.0102576,90430.0,90428.0,0.22117004]
[1765287765746,0.01105864,90427.0,90424.0,0.00161287]
[1765287765951,0.23222658,90429.0,90426.0,0.22117508]
[1765287766151,0.0102576,90428.0,90426.0,0.22117508]
[1765287766349,0.01105827,90430.0,90425.0,0.2322355]
[1765287766350,0.23222419,90430.0,90427.0,0.23223123]
[1765287766606,0.0102576,90429.0,90427.0,0.23223123]
[1765287767020,0.02131575,90431.0,90428.0,0.22117018]
[1765287767438,0.02131575,90431.0,90428.0,0.22417018]
[1765287767644,0.02231575,90431.0,90429.0,0.2211674]
[1765287767848,0.24347915,90431.0,90428.0,0.01667139]
[1765287768052,0.0102576,90430.0,90428.0,0.01667139]
[1765287768470,0.23322155,90431.0,90428.0,0.01667139]
[1765287768682,0.07079066,90429.0,90428.0,0.004]
[1765287768888,0.0102596,90429.0,90424.0,0.01105901]
[1765287769094,0.01105827,90430.0,90427.0,0.22117272]
[1765287769295,0.23222637,90429.0,90428.0,0.001]
[1765287769657,0.2332242,90430.0,90428.0,0.001]
[1765287770347,0.22116798,90429.0,90428.0,0.001]
[1765287770595,0.01105864,90427.0,90421.0,0.23870706]
[1765287770759,0.23224044,90424.0,90421.0,0.01752]
[1765287770965,0.23223575,90426.0,90422.0,0.01105925]
[1765287771151,0.01105888,90425.0,90422.0,0.232243]
[1765287771547,0.23223825,90425.0,90422.0,0.01105925]
[1765287771785,0.01105876,90426.0,90423.0,0.23224168]
[1765287772179,0.01105888,90425.0,90422.0,0.006]
[1765287772349,0.22118266,90423.0,90422.0,0.006]
[1765287772544,0.0110595,90420.0,90417.0,0.01105986]
[1765287772791,0.22119529,90418.0,90416.0,0.00161287]
[1765287773145,0.22119734,90417.0,90416.0,0.00161287]
[1765287773338,0.22119734,90417.0,90408.0,0.22121701]
[1765287773339,0.22121244,90411.0,90408.0,0.22121701]
[1765287773544,0.0110606,90411.0,90408.0,0.01106096]
[1765287773701,0.23227262,90411.0,90408.0,0.01106096]
[1765287773878,0.01106035,90413.0,90410.0,0.00077405]
[1765287774078,0.23226716,90415.0,90411.0,0.22121021]
[1765287774281,0.2212071,90414.0,90412.0,0.00071449]
[1765287774506,0.01106023,90414.0,90407.0,0.01106109]
[1765287774681,0.01106011,90415.0,90398.0,0.22124177]
[1765287774682,0.23227775,90409.0,90408.0,0.001]
[1765287775080,0.23227775,90409.0,90401.0,0.2322963]
[1765287775081,0.2212218,90407.0,90401.0,0.2322963]
[1765287775279,0.2212218,90407.0,90398.0,0.01106219]
[1765287775494,0.2212218,90407.0,90401.0,0.01106182]
[1765287775692,0.2212218,90407.0,90400.0,0.01386194]
[1765287775980,0.2212218,90407.0,90402.0,0.0110617]
[1765287776282,0.2212218,90407.0,90406.0,0.00411563]
[1765287777916,0.2222218,90407.0,90406.0,0.00711563]
[1765287778657,0.2212218,90407.0,90406.0,0.00011563]
[1765287778999,0.2232218,90407.0,90406.0,0.00111563]
[1765287779641,0.2232218,90407.0,90406.0,0.00311563]
[1765287780000,0.2232218,90407.0,90406.0,0.0040088]
[1765287780204,0.2212218,90407.0,90406.0,0.0030088]
[1765287780840,0.2222218,90407.0,90406.0,0.0020088]
[1765287781252,0.29729679,90407.0,90406.0,0.0050088]
[1765287782105,0.2222218,90407.0,90406.0,0.0050088]
[1765287799332,2.2222218,90407.0,90406.0,0.0050088]
[1765287799779,2.53494548,90407.0,90406.0,0.0050088]
[1765287800089,2.5129218,90407.0,90406.0,0.0050088]
[1765287800469,2.5232061,90407.0,90406.0,0.0050088]
[1765287800677,2.02970272,90407.0,90406.0,0.0010088]
[1765287801089,2.03170272,90407.0,90406.0,0.0030088]
[1765287801304,1.8696721,90407.0,90406.0,0.0030088]
[1765287801438,1.8676721,90407.0,90406.0,0.0010088]
[1765287801842,1.8696721,90407.0,90406.0,0.0030088]
[1765287802884,1.5467841,90407.0,90406.0,0.0030088]
[1765287803094,1.5447841,90407.0,90406.0,0.0020088]
[1765287803440,1.4072671,90407.0,90406.0,0.0030088]
[1765287803588,0.2232218,90407.0,90406.0,0.0020088]
[1765287803762,0.2232218,90407.0,90406.0,0.0010088]
[1765287803763,0.2212218,90407.0,90406.0,0.0010088]
[1765287803961,0.2212218,90407.0,90406.0,0.0030088]
[1765287804160,0.2232218,90407.0,90406.0,0.0040088]
[1765287804355,0.2232218,90407.0,90406.0,0.00562167]
[1765287804561,0.23227813,90409.0,90406.0,0.00262167]
[1765287804882,0.002,90407.0,90406.0,0.03791213]
[1765287805093,0.002,90407.0,90406.0,0.01578971]
[1765287805502,0.002,90407.0,90406.0,0.01378971]
[1765287806457,0.002,90407.0,90406.0,0.03576597]
[1765287806817,0.002,90407.0,90406.0,0.05888839]
[1765287807001,0.002,90407.0,90406.0,0.03676597]
[1765287807204,0.002,90407.0,90406.0,0.03576597]
[1765287807765,0.002,90407.0,90406.0,0.01578971]
[1765287807941,0.002,90407.0,90406.0,0.23701396]
[1765287808554,0.002,90407.0,90406.0,0.25899022]
[1765287812442,0.002,90407.0,90406.0,0.23701396]
[1765287812813,0.002,90407.0,90406.0,0.23790713]
[1765287813677,0.002,90407.0,90406.0,0.25542713]
[1765287815617,0.002,90407.0,90406.0,0.33992638]
[1765287816229,0.01105852,90428.0,90425.0,0.22117586]
[1765287816442,0.01105852,90428.0,90425.0,0.23223474]
[1765287816643,0.23222777,90429.0,90427.0,0.00026789]
[1765287816849,0.23222777,90429.0,90426.0,0.22117502]
[1765287817052,0.23222777,90429.0,90428.0,0.00023812]
[1765287817811,0.004,90429.0,90428.0,0.00023812]
[1765287818207,0.23222404,90430.0,90428.0,0.00023812]
[1765287819546,0.01105827,90430.0,90428.0,0.22140815]
[1765287819745,0.22616798,90429.0,90428.0,0.00123812]
[1765287819960,0.22616798,90429.0,90428.0,0.00023812]
[1765287819961,0.22116798,90429.0,90428.0,0.00023812]
[1765287820458,1.7067046,90429.0,90428.0,0.00123812]
[1765287820680,1.7067046,90429.0,90428.0,0.00023812]
[1765287820980,1.7117046,90429.0,90428.0,0.00123812]
[1765287822846,1.39523398,90429.0,90428.0,0.00123812]
[1765287823085,1.28650898,90429.0,90428.0,0.00123812]
[1765287826722,1.26398998,90429.0,90428.0,0.00123812]
[1765287826923,0.01105937,90421.0,90414.0,0.01106023]
[1765287827124,0.2322447,90422.0,90419.0,0.20479364]
[1765287827355,0.01105925,90422.0,90419.0,0.20640651]
[1765287827747,0.01105925,90422.0,90419.0,0.00161287]
[1765287827962,0.01105925,90422.0,90419.0,0.24492438]
[1765287828163,0.004,90421.0,90420.0,0.22118999]
[1765287828570,0.004,90421.0,90420.0,0.00161287]
[1765287828917,0.004,90421.0,90420.0,0.22280287]
[1765287829245,0.22518755,90421.0,90420.0,0.00161287]
[1765287829452,0.22118755,90421.0,90420.0,0.00161287]
[1765287830056,0.22118755,90421.0,90420.0,0.00261287]
[1765287830258,0.31408455,90421.0,90420.0,0.00261287]
[1765287830904,0.31808455,90421.0,90420.0,0.00361287]
[1765287832047,0.22518755,90421.0,90420.0,0.00361287]
[1765287832521,0.22518755,90421.0,90420.0,0.00385103]
[1765287832727,0.004,90421.0,90420.0,0.28661629]
[1765287832945,0.004,90421.0,90420.0,0.26449729]
[1765287833464,0.004,90421.0,90420.0,0.26349729]
[1765287833831,0.004,90421.0,90420.0,0.26749729]
[1765287834237,0.01105778,90434.0,90428.0,0.22117014]
[1765287834437,0.01105778,90434.0,90420.0,0.02333103]
[1765287834438,0.01105876,90426.0,90420.0,0.00585103]
[1765287834637,0.001,90421.0,90420.0,0.00785103]
[1765287834838,0.02653552,90421.0,90420.0,0.00785103]
[1765287835272,0.02653552,90421.0,90420.0,0.00385103]
[1765287835653,0.02653552,90421.0,90420.0,0.00785103]
[1765287835825,0.001,90421.0,90420.0,0.00785103]
[1765287836027,0.23224458,90423.0,90420.0,0.00585103]
[1765287836253,0.001,90421.0,90420.0,0.00785103]
[1765287836658,0.22118529,90422.0,90420.0,0.00585103]
[1765287836860,0.22118529,90422.0,90420.0,0.00185103]
[1765287837095,0.001,90421.0,90420.0,0.00385103]
[1765287837301,0.001,90421.0,90420.0,0.00785103]
[1765287838366,0.001,90421.0,90420.0,0.00385103]
[1765287838596,0.22218755,90421.0,90420.0,0.00385103]
[1765287838822,0.22218755,90421.0,90420.0,0.00785103]
[1765287839237,0.22218755,90421.0,90420.0,0.00385103]
[1765287839665,0.22218755,90421.0,90420.0,0.00785103]
[1765287840206,0.31629015,90421.0,90420.0,0.00785103]
[1765287840604,0.31629015,90421.0,90420.0,0.00623816]
[1765287840884,0.60699015,90421.0,90420.0,0.00623816]
[1765287841064,2.60699015,90421.0,90420.0,0.00623816]
[1765287841238,2.61728282,90421.0,90420.0,0.00623816]
[1765287841442,2.61728282,90421.0,90420.0,0.00223816]
[1765287841843,2.65098768,90421.0,90420.0,0.00523816]
[1765287842226,1.33359852,90421.0,90420.0,0.00223816]
[1765287842447,1.27232052,90421.0,90420.0,0.00223816]
[1765287842654,0.99207722,90421.0,90420.0,0.00023816]
[1765287843232,1.00413892,90421.0,90420.0,0.00123816]
[1765287843629,1.00313892,90421.0,90420.0,0.00023816]
[1765287844062,1.11964654,90421.0,90420.0,0.00123816]
[1765287844467,1.14167022,90421.0,90420.0,0.00123816]
[1765287845016,1.11964654,90421.0,90420.0,0.00123816]
[1765287845590,1.00913892,90421.0,90420.0,0.00123816]
[1765287845791,0.85140522,90421.0,90420.0,0.00123816]
[1765287845989,0.2907,90421.0,90420.0,0.00023816]
[1765287846191,0.2907,90421.0,90420.0,0.00185103]
[1765287846392,0.2967,90421.0,90420.0,0.00285103]
[1765287846795,0.22118547,90422.0,90420.0,0.00185103]
[1765287846976,0.2907,90421.0,90420.0,0.00023816]
[1765287847180,0.2967,90421.0,90420.0,0.00123816]